bitfinex/quotes_ETHUSD_20241217
["timestamp","ask_amount","ask_price","bid_price","bid_amount"]
[1734400268506,0.8039,3981.4,3980.1,0.12509558]
[1734400268716,0.8039,3981.4,3979.8,0.8213]
[1734400269005,0.8039,3981.4,3979.9,0.55]
[1734400269303,0.8039,3981.4,3980.7,3.0]
[1734400269504,0.8039,3981.4,3980.0,0.13713]
[1734400269907,1.04571151,3981.4,3980.0,0.13713]
[1734400270108,0.8039,3981.2,3979.9,0.12822087]
[1734400270308,0.8039,3981.0,3979.9,0.12822087]
[1734400271612,0.8039,3981.0,3979.9,0.15334147]
[1734400271968,0.8039,3981.0,3979.9,0.12822087]
[1734400273316,0.8039,3981.0,3979.2,0.8213]
[1734400273500,0.8039,3981.0,3979.3,0.54986946]
[1734400273971,0.8039,3981.0,3979.2,0.12611615]
[1734400274170,0.8039,3981.0,3978.9,0.8213]
[1734400275175,0.8039,3981.0,3979.0,0.02512416]
[1734400275377,0.8039,3981.0,3979.4,0.12765834]
[1734400275586,0.8039,3981.0,3979.7,0.8213]
[1734400275811,0.8039,3981.0,3980.0,3.0]
[1734400276122,0.8039,3981.0,3980.1,0.3]
[1734400276687,0.8039,3981.0,3980.1,3.3]
[1734400276888,0.8039,3981.0,3980.1,0.3]
[1734400277190,0.8039,3981.0,3979.7,0.94721433]
[1734400277803,0.8039,3981.0,3980.2,3.0]
[1734400278004,0.8039,3981.0,3979.7,0.94721433]
[1734400278833,0.8039,3981.0,3979.8,0.02512066]
[1734400279332,0.8039,3981.0,3979.7,0.94721433]
[1734400279497,0.8039,3981.0,3979.7,1.2703038]
[1734400279693,0.8039,3981.0,3979.8,0.12954245]
[1734400279933,0.8039,3981.0,3979.9,0.02512066]
[1734400280231,0.8039,3981.0,3979.9,0.89821013]
[1734400280540,0.8238,3982.2,3980.2,0.8317]
[1734400280735,0.8238,3982.2,3980.3,1.41440084]
[1734400281029,0.8238,3982.2,3980.3,0.89820445]
[1734400281235,0.8238,3982.2,3981.2,3.0]
[1734400281410,0.8238,3982.2,3980.3,0.89820445]
[1734400281611,0.8238,3982.2,3980.3,0.57511498]
[1734400281794,0.8238,3982.2,3981.2,3.0]
[1734400281993,0.8238,3982.2,3980.5,0.55]
[1734400282198,0.8238,3982.2,3981.2,3.0]
[1734400284311,0.8238,3982.2,3981.0,0.12364965]
[1734400284536,0.8238,3982.2,3981.2,3.0]
[1734400284737,0.8238,3982.2,3981.2,3.3]
[1734400284941,0.8238,3982.2,3981.3,0.02511456]
[1734400285139,0.8238,3982.2,3981.6,3.0]
[1734400285367,0.8238,3982.2,3981.7,0.02511197]
[1734400285660,0.8238,3982.2,3981.7,1.33401197]
[1734400285812,0.8238,3982.2,3981.8,0.197139]
[1734400286239,0.8238,3982.2,3981.0,1.08198947]
[1734400286444,0.8238,3982.2,3981.8,3.0]
[1734400286625,0.8238,3982.2,3981.1,0.55]
[1734400287153,0.8238,3982.2,3981.1,0.86428858]
[1734400287828,0.8238,3982.2,3981.3,0.55]
[1734400288028,0.8238,3982.2,3981.4,0.16905095]
[1734400288231,0.8238,3982.2,3981.4,0.48333953]
[1734400288421,0.8238,3982.2,3981.5,0.55]
[1734400288616,0.8238,3982.2,3981.6,0.02510933]
[1734400288817,0.8,3983.2,3981.9,0.55]
[1734400289122,0.8,3984.0,3982.2,0.7589]
[1734400289322,0.8,3984.0,3982.3,1.21247952]
[1734400290981,0.8,3984.0,3982.5,0.55]
[1734400291119,0.8,3984.0,3982.6,0.6624776]
[1734400291316,0.8,3984.0,3982.7,0.55]
[1734400291518,0.8,3984.0,3983.0,0.55]
[1734400291829,0.8,3984.0,3983.2,0.55]
[1734400292130,0.8,3984.0,3983.6,3.0]
[1734400292646,0.8,3984.0,3983.2,0.55]
[1734400292960,0.8,3984.0,3983.6,3.0]
[1734400294122,0.8,3984.0,3983.2,0.67630766]
[1734400294468,0.8,3984.0,3983.6,3.0]
[1734400294617,0.8,3984.0,3983.7,0.3]
[1734400294820,0.8,3984.0,3983.2,0.99059624]
[1734400295020,0.8,3984.0,3983.6,3.0]
[1734400296421,0.8,3984.0,3983.2,0.46569594]
[1734400296616,0.8,3984.0,3983.6,3.0]
[1734400297470,0.8,3984.0,3983.2,0.46569594]
[1734400297637,0.8,3984.0,3983.6,3.0]
[1734400297968,0.8,3984.0,3983.7,0.3]
[1734400299342,0.8,3984.0,3983.6,3.0]
[1734400300498,0.8,3984.0,3983.4,0.33938735]
[1734400301137,0.8,3984.0,3983.7,3.0]
[1734400302292,0.8,3984.0,3983.5,0.55]
[1734400302505,0.8,3984.0,3983.7,3.0]
[1734400302809,0.8,3984.0,3983.8,0.355]
[1734400303561,0.8,3984.0,3983.7,3.0]
[1734400304081,0.8,3984.0,3982.9,1.07318858]
[1734400304261,0.8,3984.0,3983.7,3.0]
[1734400304719,0.8,3984.0,3983.1,0.2907805]
[1734400304925,0.8,3984.0,3983.7,3.0]
[1734400305288,0.8,3984.0,3983.1,0.2907805]
[1734400305289,0.8,3984.0,3983.1,0.1648288]
[1734400305624,0.8,3984.0,3983.7,3.0]
[1734400306186,0.8,3984.0,3983.1,0.1648288]
[1734400306520,0.8,3984.0,3982.9,0.31428858]
[1734400306729,0.8,3984.0,3983.0,0.55]
[1734400307025,0.8,3984.0,3983.5,3.0]
[1734400307531,0.8,3984.0,3983.0,0.0251023]
[1734400307728,0.8,3984.0,3982.8,0.44590294]
[1734400308027,0.8,3984.0,3982.8,0.76019152]
[1734400308642,0.8,3984.0,3982.9,0.55]
[1734400308832,0.8,3984.0,3983.0,0.13101915]
[1734400309179,0.8,3984.0,3983.0,0.15611987]
[1734400309382,0.8,3984.0,3983.4,3.0]
[1734400309601,0.8,3984.0,3983.5,0.02510072]
[1734400309913,0.8,3984.0,3983.5,0.66247877]
[1734400310146,0.8155,3985.5,3983.9,3.0]
[1734400310296,0.8155,3985.5,3984.0,0.70318482]
[1734400310479,0.8155,3985.5,3984.0,0.99237805]
[1734400311112,0.8155,3985.5,3984.0,0.63737805]
[1734400311887,0.8155,3985.5,3984.1,0.02509564]
[1734400312089,0.8155,3985.5,3984.1,3.02509564]
[1734400312306,0.8155,3985.5,3984.4,3.0]
[1734400312523,0.8155,3985.5,3984.5,0.57509395]
[1734400312837,0.8155,3985.5,3984.7,3.0]
[1734400312996,0.8155,3985.5,3984.7,0.02509098]
[1734400313194,0.8155,3985.5,3984.6,0.13706939]
[1734400313379,0.8155,3985.5,3984.7,3.0]
[1734400313794,0.8155,3985.5,3984.6,0.13706939]
[1734400313989,0.8155,3985.5,3984.7,3.0]
[1734400314190,0.8155,3985.5,3983.6,0.7841]
[1734400314390,0.8155,3985.5,3984.6,3.0]
[1734400314604,0.8155,3985.5,3983.9,0.99027496]
[1734400314938,0.8155,3985.5,3984.4,3.0]
[1734400315087,0.8155,3985.5,3983.9,0.67598638]
[1734400315296,0.8155,3985.5,3984.4,3.0]
[1734400315523,0.8155,3985.5,3983.9,0.67598638]
[1734400315752,0.8155,3985.5,3984.4,3.0]
[1734400316042,0.8155,3985.5,3983.9,0.67598638]
[1734400316218,0.8155,3985.5,3984.4,3.0]
[1734400317289,0.8155,3985.5,3984.4,3.3]
[1734400317721,0.8155,3985.5,3984.4,0.3]
[1734400317939,0.8155,3985.5,3984.4,3.0]
[1734400318819,0.8155,3985.5,3983.9,0.67598638]
[1734400319067,0.8155,3985.5,3984.0,0.02509487]
[1734400319274,0.8155,3985.5,3984.4,3.0]
[1734400319652,0.8155,3985.5,3984.0,0.02509487]
[1734400319968,0.8155,3985.5,3984.4,3.0]
[1734400320271,0.8155,3985.5,3984.4,0.3]
[1734400320416,0.8155,3985.5,3984.4,3.0]
[1734400322421,0.8155,3985.5,3984.8,3.0]
[1734400322625,0.8155,3985.5,3984.5,0.33938347]
[1734400322970,0.8155,3985.5,3984.8,3.0]
[1734400323324,0.8155,3985.5,3984.5,0.33938347]
[1734400323521,0.8155,3985.5,3984.8,3.0]
[1734400323734,0.8155,3985.5,3984.8,2.7]
[1734400323973,0.8155,3985.5,3984.6,0.15528101]
[1734400324252,0.8155,3985.5,3984.7,0.02509113]
[1734400324452,0.8155,3985.5,3984.6,0.15528101]
[1734400324707,0.8155,3985.5,3984.6,0.18037215]
[1734400324856,0.8155,3985.5,3984.6,0.49466073]
[1734400325053,0.8155,3985.5,3984.7,1.18737805]
[1734400325311,0.8155,3985.5,3984.9,0.55]
[1734400325494,0.7584,3986.8,3985.0,0.33937842]
[1734400325815,0.7584,3986.8,3985.5,3.0]
[1734400326114,0.7584,3986.8,3985.1,0.34817534]
[1734400326252,0.7584,3986.8,3985.2,0.55]
[1734400326597,0.7584,3986.8,3985.4,0.55]
[1734400327314,0.7584,3986.8,3985.8,3.0]
[1734400328102,0.7584,3986.8,3986.3,3.0]
[1734400328397,0.7584,3986.8,3985.9,0.66246111]
[1734400328816,0.7584,3986.8,3986.3,3.0]
[1734400329011,0.7584,3986.8,3985.9,0.66246111]
[1734400329304,0.7584,3986.8,3986.0,0.14250611]
[1734400329456,0.7584,3986.8,3986.3,3.0]
[1734400330049,0.7584,3986.8,3985.4,1.39997805]
[1734400330050,0.7584,3986.8,3985.4,0.63737805]
[1734400330256,0.7584,3986.8,3985.0,0.7626]
[1734400330531,0.7584,3986.8,3985.1,0.02508764]
[1734400330655,0.7584,3986.8,3985.1,0.66246569]
[1734400330851,0.7584,3986.8,3985.2,0.14250657]
[1734400331503,0.7584,3986.8,3985.6,3.0]
[1734400331653,0.7584,3986.8,3985.0,0.12454521]
[1734400331858,0.7584,3986.8,3984.7,1.07688858]
[1734400332054,0.7584,3986.8,3984.8,0.55]
[1734400333002,0.7584,3986.8,3985.0,0.55]
[1734400333314,0.7584,3986.8,3985.1,0.4905352]
[1734400333474,0.7584,3986.8,3985.1,0.31428858]
[1734400333675,0.7584,3986.8,3984.8,0.55]
[1734400334162,0.7584,3986.8,3985.0,0.55]
[1734400334353,0.86475611,3986.7,3985.1,0.15144185]
[1734400334570,0.7544,3986.8,3985.2,1.18737805]
[1734400334807,0.7544,3986.8,3986.2,3.0]
[1734400335005,0.7544,3986.8,3986.3,3.02508309]
[1734400335288,0.7544,3986.8,3985.9,0.33937162]
[1734400335468,0.7544,3986.8,3986.3,3.0]
[1734400335903,0.7544,3986.8,3985.9,0.33937162]
[1734400336312,0.7544,3986.8,3986.0,1.3822]
[1734400336520,0.7544,3986.8,3986.7,3.0]
[1734400336680,0.7544,3986.8,3986.2,0.55]
[1734400336861,0.7544,3986.8,3986.7,3.0]
[1734400337060,0.7544,3986.8,3986.1,0.20446611]
[1734400337262,0.7544,3986.8,3986.0,0.55]
[1734400337606,0.7544,3986.8,3985.3,0.88828199]
[1734400337607,0.7544,3986.8,3985.3,0.88175875]
[1734400337994,0.7544,3986.8,3985.3,0.12735875]
[1734400338206,0.7544,3986.8,3985.1,0.44064223]
[1734400338489,0.7544,3986.8,3985.2,0.33937552]
[1734400338671,0.7544,3986.8,3985.3,0.14217792]
[1734400338887,0.7544,3986.8,3985.7,3.0]
[1734400340058,0.7544,3986.8,3985.4,0.31428858]
[1734400340308,0.7544,3986.8,3985.5,0.33937553]
[1734400340612,0.7544,3986.8,3985.4,0.67637781]
[1734400340797,0.7544,3986.8,3985.4,0.55]
[1734400340975,0.7544,3986.8,3986.0,3.0]
[1734400341503,0.7544,3986.8,3985.4,0.55]
[1734400341715,0.7544,3986.8,3986.0,3.0]
[1734400342176,0.7544,3986.8,3985.3,0.26553745]
[1734400342361,0.7544,3986.8,3985.4,0.31428858]
[1734400342566,0.7544,3986.8,3986.0,3.0]
[1734400342783,0.7544,3986.8,3985.7,3.0]
[1734400344327,0.7544,3986.8,3985.4,0.31428858]
[1734400344664,0.7544,3986.8,3985.7,3.0]
[1734400345164,0.7544,3986.8,3985.4,0.31428858]
[1734400345398,0.7544,3986.8,3985.7,3.0]
[1734400345602,0.7544,3986.8,3985.4,0.31428858]
[1734400345983,0.7544,3986.8,3985.7,3.0]
[1734400346367,0.7544,3986.8,3985.8,0.02508697]
[1734400346567,0.7544,3986.8,3985.8,0.88937555]
[1734400347461,0.7544,3986.8,3985.8,0.86428858]
[1734400347713,0.7544,3986.8,3986.3,3.0]
[1734400348005,0.7544,3986.8,3985.8,0.86428858]
[1734400348222,0.7544,3986.8,3986.3,3.0]
[1734400348401,0.7544,3986.8,3986.6,3.0]
[1734400349529,0.7544,3986.8,3986.0,0.87308947]
[1734400349530,0.7544,3986.8,3986.1,0.02508203]
[1734400349708,0.7544,3986.8,3986.6,3.0]
[1734400349881,0.7544,3986.8,3986.0,0.87308947]
[1734400350067,0.7544,3986.8,3986.6,3.0]
[1734400351378,0.7544,3986.8,3986.1,0.13693044]
[1734400351580,0.7544,3986.8,3986.6,3.0]
[1734400354227,0.7544,3986.8,3986.1,0.13693044]
[1734400354381,0.7544,3986.8,3986.1,0.31428858]
[1734400354585,0.7544,3986.8,3986.2,0.02508479]
[1734400354821,0.7544,3986.8,3986.6,3.0]
[1734400355029,0.7544,3986.8,3986.3,0.31428858]
[1734400355269,0.7544,3986.8,3986.6,3.0]
[1734400355411,0.7544,3986.8,3986.6,3.33142886]
[1734400356302,0.7544,3986.8,3986.6,0.33142886]
[1734400356484,1e-05,3987.0,3986.3,0.33937009]
[1734400356684,1e-05,3987.0,3986.3,0.31428858]
[1734400357325,1e-05,3987.0,3986.6,3.0]
[1734400357921,1e-05,3987.0,3986.3,0.46574158]
[1734400358096,1e-05,3987.0,3986.3,0.44066155]
[1734400358308,1e-05,3987.0,3986.4,0.02508011]
[1734400358934,1e-05,3987.0,3986.3,0.44066155]
[1734400358935,1e-05,3987.0,3986.8,3.0]
[1734400359889,1e-05,3987.0,3986.3,0.46574165]
[1734400360421,1e-05,3987.0,3986.3,0.44066155]
[1734400361408,1e-05,3987.0,3986.8,3.0]
[1734400362427,1e-05,3987.0,3986.3,0.44066155]
[1734400362723,1e-05,3987.0,3986.8,3.0]
[1734400362924,0.7544,3986.9,3985.9,0.55]
[1734400363302,0.7544,3986.9,3986.6,3.0]
[1734400363797,0.7544,3986.9,3986.0,0.31428858]
[1734400364010,0.7544,3986.9,3985.9,0.67787774]
[1734400364201,0.7544,3986.9,3986.6,3.0]
[1734400364800,0.7544,3986.9,3986.0,0.3393711]
[1734400365020,0.7544,3986.9,3986.6,3.0]
[1734400365423,0.7544,3986.9,3986.1,0.31428858]
[1734400365728,0.7544,3986.9,3985.9,0.67787774]
[1734400365938,0.7544,3986.9,3986.6,3.0]
[1734400366385,1e-05,3987.0,3986.6,0.3]
[1734400366586,1e-05,3987.0,3986.4,0.7741]
[1734400367702,1e-05,3987.0,3986.8,3.0]
[1734400367918,1e-05,3987.0,3986.9,0.02507811]
[1734400368115,1e-05,3987.0,3986.9,0.33936669]
[1734400368512,1e-05,3987.0,3986.6,0.02507772]
[1734400368713,1e-05,3987.0,3986.9,0.31428858]
[1734400368918,1e-05,3987.0,3986.7,0.14743511]
[1734400369122,1e-05,3987.0,3986.7,0.46172369]
[1734400371617,1e-05,3987.0,3986.7,0.14743511]
[1734400371820,1e-05,3987.0,3986.4,0.12517342]
[1734400372021,0.8237,3986.9,3986.3,0.55]
[1734400372427,0.8237,3986.9,3986.1,0.55]
[1734400372623,0.8237,3986.9,3986.5,0.12276083]
[1734400372839,0.8237,3986.9,3986.1,0.86428858]
[1734400373038,0.8237,3986.9,3986.7,3.0]
[1734400373340,0.8237,3986.9,3986.0,1.08838858]
[1734400373341,0.8237,3986.9,3986.0,0.7741]
[1734400373543,0.8237,3986.9,3985.9,0.12628163]
[1734400373753,0.8237,3986.9,3985.7,0.7741]
[1734400374641,0.8237,3986.9,3985.8,0.55]
[1734400374967,0.8237,3986.9,3985.9,0.17614896]
[1734400375170,0.8237,3986.9,3985.6,0.12310101]
[1734400375372,0.8237,3986.9,3985.4,1.09718947]
[1734400375668,0.8237,3986.7,3985.4,1.09718947]
[1734400376232,0.8237,3986.7,3985.4,0.12344045]
[1734400376469,0.8237,3986.5,3985.1,0.7741]
[1734400376633,0.8237,3986.5,3985.4,0.31428858]
[1734400376838,0.8237,3986.5,3985.2,0.46423727]
[1734400377063,0.8237,3986.5,3985.3,0.31428858]
[1734400377269,0.8237,3986.5,3985.6,0.12259805]
[1734400377457,0.8237,3986.5,3986.1,3.0]
[1734400378374,0.8237,3986.5,3985.3,0.31428858]
[1734400378679,0.8237,3986.5,3986.1,3.0]
[1734400378974,0.8237,3986.5,3985.3,0.31428858]
[1734400379181,0.86702973,3986.4,3985.3,0.31428858]
[1734400379478,0.8237,3986.5,3985.3,0.31428858]
[1734400380687,0.8237,3986.5,3985.3,0.439798]
[1734400380859,0.8237,3986.5,3986.1,3.0]
[1734400381612,0.8237,3986.5,3985.4,0.13550458]
[1734400381802,0.8237,3986.5,3985.4,0.44979316]
[1734400382257,0.8237,3986.5,3985.4,0.57387562]
[1734400383566,0.8142,3986.3,3985.4,0.57387562]
[1734400384191,0.8142,3986.3,3985.4,0.25958704]
[1734400385194,0.8142,3986.1,3984.8,0.32308947]
[1734400385413,0.8142,3985.9,3984.5,0.12332551]
[1734400385586,0.8142,3985.8,3984.4,0.8273]
[1734400385781,0.8142,3985.6,3984.4,0.8273]
[1734400385965,0.8142,3985.6,3984.4,1.15038947]
[1734400386171,0.8142,3985.6,3984.5,0.32308947]
[1734400386408,0.8142,3985.6,3984.6,0.15874879]
[1734400388400,0.8142,3985.6,3985.2,3.0]
[1734400388611,0.8142,3986.0,3985.3,0.89818069]
[1734400388789,0.8142,3986.4,3985.8,3.0]
[1734400388986,0.8142,3986.4,3985.4,0.31428858]
[1734400389186,0.8142,3986.4,3985.8,3.0]
[1734400389385,0.8142,3986.4,3985.8,0.3]
[1734400389712,0.8142,3986.4,3985.9,0.02508507]
[1734400389909,0.8142,3986.4,3985.6,0.02508507]
[1734400390222,0.8142,3986.9,3986.0,0.86428858]
[1734400390406,0.8142,3986.9,3985.8,0.55]
[1734400390608,0.8142,3986.9,3986.5,3.0]
[1734400390788,0.8142,3986.9,3985.8,0.55]
[1734400390987,0.8142,3986.9,3986.5,3.0]
[1734400391398,0.8142,3986.9,3985.9,0.13773]
[1734400391780,0.8142,3986.9,3986.0,0.55]
[1734400392021,0.8142,3986.9,3986.5,3.0]
[1734400392332,0.8142,3986.9,3985.8,0.55]
[1734400392484,0.8142,3986.9,3986.5,3.0]
[1734400392688,0.8142,3986.9,3985.5,0.55]
[1734400392903,0.8142,3986.9,3986.5,3.0]
[1734400393703,0.8142,3986.9,3985.5,0.55]
[1734400393904,0.8142,3986.9,3985.4,0.254343]
[1734400393905,4.02469889,3986.9,3985.4,0.254343]
[1734400394159,0.8123,3986.7,3985.5,0.55]
[1734400394318,0.8123,3986.6,3985.5,0.55]
[1734400394732,0.8123,3986.6,3985.1,0.12716135]
[1734400394934,0.8123,3986.4,3984.9,0.55]
[1734400395246,0.8123,3986.4,3985.1,0.55]
[1734400395452,0.8123,3986.4,3985.1,0.57508782]
[1734400395856,0.8123,3986.4,3985.1,0.55]
[1734400396721,0.8123,3986.4,3985.0,0.21184839]
[1734400397858,0.8123,3986.4,3985.1,0.02508984]
[1734400398375,0.8123,3986.4,3985.7,3.0]
[1734400398727,0.8123,3986.4,3985.1,0.02508984]
[1734400399160,0.8123,3986.4,3985.7,3.0]
[1734400399461,0.8123,3986.4,3985.1,0.55]
[1734400400082,0.8123,3986.4,3985.1,0.76441106]
[1734400400436,0.8123,3986.4,3985.1,0.55]
[1734400401097,0.86612698,3986.3,3985.1,0.55]
[1734400401251,0.8123,3986.4,3985.7,3.0]
[1734400401438,0.8123,3986.2,3985.1,0.55]
[1734400402078,0.8123,3986.2,3985.0,0.21184839]
[1734400402277,0.8123,3986.2,3984.9,0.55]
[1734400402779,0.8123,3986.2,3985.3,3.0]
[1734400403284,0.8123,3986.2,3984.9,0.55]
[1734400403837,0.8123,3986.2,3985.0,0.33937886]
[1734400404070,0.8123,3986.2,3985.3,3.0]
[1734400404434,0.8123,3986.2,3985.0,0.02509028]
[1734400404741,0.8123,3986.2,3984.9,0.87308947]
[1734400405388,0.8123,3986.2,3984.9,1.11612846]
[1734400408052,0.8123,3986.2,3984.9,1.43041704]
[1734400409149,0.8123,3986.2,3984.9,0.88041704]
[1734400409395,0.8123,3986.2,3984.3,0.55]
[1734400409396,1.04467839,3985.9,3984.3,0.55]
[1734400409708,0.7642,3985.7,3984.3,0.55]
[1734400410002,0.7642,3985.5,3985.1,3.0]
[1734400410204,0.7642,3985.5,3984.5,0.55]
[1734400410353,0.7642,3985.5,3985.1,3.0]
[1734400410558,0.7642,3985.5,3984.5,0.55]
[1734400411225,0.7642,3985.5,3983.9,0.789]
[1734400411507,0.7642,3985.5,3983.8,0.31428858]
[1734400411666,0.86591345,3985.4,3983.8,0.31428858]
[1734400411873,0.7642,3985.3,3983.8,0.31428858]
[1734400412288,0.7642,3985.3,3984.2,0.12584997]
[1734400413085,0.7642,3985.3,3984.5,3.0]
[1734400413284,0.7642,3985.3,3984.2,0.12584997]
[1734400415980,0.7642,3985.3,3983.9,0.55]
[1734400416820,0.7642,3985.3,3984.3,3.0]
[1734400417111,0.7642,3985.3,3984.1,0.12769843]
[1734400417320,0.7642,3985.3,3983.9,0.55]
[1734400417503,0.86622349,3985.2,3983.9,0.55]
[1734400417818,0.7642,3985.1,3983.9,0.55]
[1734400418485,0.7642,3985.1,3983.8,0.31428858]
[1734400418690,0.7642,3985.0,3983.3,0.31428858]
[1734400419035,0.7642,3984.8,3983.3,0.14263781]
[1734400419187,3.21062828,3984.7,3983.3,0.14263781]
[1734400419522,0.7642,3984.5,3983.9,3.0]
[1734400421091,0.7642,3984.5,3983.8,3.0]
[1734400421828,0.7642,3984.5,3983.3,0.14263781]
[1734400422038,0.7642,3984.5,3983.8,3.0]
[1734400422243,0.7642,3984.5,3983.3,0.14263781]
[1734400422386,0.7642,3984.5,3983.3,0.26606206]
[1734400422785,0.7642,3984.5,3983.3,0.38850576]
[1734400422999,0.7642,3984.5,3983.0,0.12867179]
[1734400423301,0.7757,3984.3,3983.1,0.55]
[1734400423513,0.7757,3984.3,3982.8,0.55]
[1734400426109,0.7757,3984.3,3982.8,0.87308947]
[1734400426340,0.7757,3984.3,3983.2,0.1226118]
[1734400428244,0.7757,3984.3,3983.4,3.0]
[1734400428391,0.7757,3984.3,3983.2,0.44570127]
[1734400428822,0.7757,3984.3,3983.5,3.0]
[1734400429138,0.7757,3984.3,3983.2,0.44570127]
[1734400429139,0.7757,3984.3,3983.2,0.1226118]
[1734400433127,0.7757,3984.3,3983.5,3.0]
[1734400433340,0.7757,3984.3,3982.8,0.55]
[1734400433499,0.7757,3984.3,3983.0,0.55]
[1734400434847,0.7757,3984.3,3983.5,3.0]
[1734400436290,0.7757,3984.3,3983.1,0.12756399]
[1734400436722,0.7757,3984.3,3983.5,3.0]
[1734400436941,0.7757,3984.3,3983.1,0.12756399]
[1734400437098,0.7757,3984.3,3983.5,3.0]
[1734400437515,0.7757,3984.3,3983.1,0.12756399]
[1734400437737,0.7757,3984.3,3983.5,3.0]
[1734400437900,0.7757,3984.3,3983.1,0.12756399]
[1734400438101,0.7757,3984.3,3983.5,3.0]
[1734400439355,0.7757,3984.3,3984.0,3.0]
[1734400439650,0.8065,3985.4,3984.2,3.0]
[1734400440234,0.8065,3985.2,3983.6,0.55]
[1734400440429,0.8065,3985.2,3984.2,3.0]
[1734400440598,0.8065,3985.2,3983.6,0.67779091]
[1734400440944,0.8065,3985.2,3984.2,3.0]
[1734400442438,0.8065,3985.2,3983.8,0.55]
[1734400442648,0.8065,3985.2,3984.2,3.0]
[1734400443015,0.8065,3985.2,3983.8,0.55]
[1734400443218,0.8065,3985.2,3984.2,3.0]
[1734400443446,0.8065,3985.0,3984.2,3.0]
[1734400443814,0.8065,3985.0,3983.7,0.17389909]
[1734400443815,0.8065,3985.0,3983.7,0.2993286]
[1734400444018,0.86527902,3984.9,3983.7,0.12542951]
[1734400444237,0.8065,3984.7,3983.7,0.12542951]
[1734400444647,0.8065,3984.7,3983.2,0.55]
[1734400445074,0.8065,3984.7,3983.2,0.86428858]
[1734400445219,0.8065,3984.7,3983.2,0.55]
[1734400445419,0.8065,3984.7,3983.3,0.31428858]
[1734400445648,0.8065,3984.7,3983.4,0.19039307]
[1734400446117,0.8065,3984.7,3983.8,3.0]
[1734400446529,0.8065,3984.7,3983.4,0.19039307]
[1734400447330,0.8065,3984.7,3983.8,3.0]
[1734400447538,0.8065,3984.7,3983.1,0.88876399]
[1734400447721,0.8065,3984.5,3982.9,0.55]
[1734400448266,0.8065,3984.5,3982.9,0.68112]
[1734400448632,0.86628753,3984.4,3982.9,0.68112]
[1734400448828,0.8065,3984.3,3982.9,0.68112]
[1734400449228,0.8065,3984.3,3983.0,0.12380039]
[1734400449470,0.8065,3984.3,3983.5,3.0]
[1734400450227,0.8065,3984.3,3983.6,0.02510287]
[1734400450463,0.8065,3984.3,3983.5,0.3]
[1734400450671,0.8065,3984.3,3983.1,0.55]
[1734400451368,0.8065,3984.3,3983.5,3.0]
[1734400452568,0.8065,3984.3,3983.1,0.55]
[1734400452774,0.8065,3984.1,3983.1,0.55]
[1734400452947,0.8065,3984.1,3983.5,3.0]
[1734400453864,0.8065,3984.1,3983.4,3.0]
[1734400454047,0.8291,3983.9,3983.0,0.12380039]
[1734400454247,0.8291,3983.9,3983.0,0.25684129]
[1734400454475,0.8291,3983.9,3983.3,3.0]
[1734400454777,0.8291,3983.9,3983.0,0.12380039]
[1734400454974,0.8291,3983.7,3982.8,0.55]
[1734400455274,0.8291,3983.7,3982.6,0.55]
[1734400455488,0.8291,3983.7,3982.7,0.46793895]
[1734400455652,0.8291,3983.7,3982.8,0.55]
[1734400456177,0.8291,3983.7,3982.6,0.55]
[1734400456678,0.8291,3983.7,3983.3,3.0]
[1734400456855,0.8291,3983.7,3982.6,0.55]
[1734400457185,0.8291,3983.7,3982.8,0.55]
[1734400457477,0.8291,3983.7,3982.6,0.55]
[1734400457666,0.8291,3983.7,3982.5,0.55]
[1734400458045,0.8291,3983.7,3982.9,0.12328532]
[1734400458479,0.8291,3983.7,3983.0,0.8063]
[1734400458785,1.56701758,3984.1,3983.0,0.8063]
[1734400458786,1.04467839,3984.1,3983.1,0.88939216]
[1734400458953,0.8291,3984.3,3983.3,0.55]
[1734400459853,0.8291,3984.3,3983.3,0.57509904]
[1734400460182,1.87377839,3984.6,3983.5,0.55]
[1734400460370,1.87377839,3984.6,3983.6,0.02509797]
[1734400460371,2.17069377,3984.5,3983.6,0.02509797]
[1734400460585,1.87377839,3984.6,3983.5,0.55]
[1734400460586,0.8291,3984.6,3983.7,0.2018776]
[1734400461656,0.8291,3984.6,3983.8,0.86428858]
[1734400461995,0.8291,3984.6,3983.8,0.55]
[1734400463784,0.8291,3984.6,3983.8,0.67632815]
[1734400464671,0.86841165,3984.5,3983.8,0.67632815]
[1734400465077,0.86841165,3984.5,3983.8,0.12632815]
[1734400465316,0.86841165,3984.5,3983.7,0.2018776]
[1734400465482,0.86841165,3984.5,3983.5,0.55]
[1734400465815,1.87377839,3984.6,3983.5,0.55]
[1734400465974,0.8291,3984.4,3983.4,4.06057827]
[1734400466175,0.8291,3984.2,3983.2,0.21420669]
[1734400466407,0.8291,3984.1,3983.2,0.21420669]
[1734400466587,4.04492456,3984.1,3983.2,0.21420669]
[1734400466789,0.86843026,3984.0,3983.0,0.8063]
[1734400466985,0.8291,3983.9,3983.0,0.8063]
[1734400467437,0.8291,3983.9,3983.1,0.55]
[1734400467797,0.8291,3983.9,3983.0,0.1283436]
[1734400468145,0.8291,3983.7,3983.0,0.1283436]
[1734400468313,0.8291,3983.7,3982.4,3.8063]
[1734400468314,0.86857278,3983.6,3982.4,4.83696726]
[1734400468644,0.86857278,3983.6,3982.5,4.82988465]
[1734400468810,0.8291,3983.5,3982.6,4.19158783]